bitfinex-derivatives/quotes_BTCF0:USTF0_20250719
["timestamp","ask_amount","ask_price","bid_price","bid_amount"]
[1752887940262,0.40579539,118050.0,118040.0,1.14395594]
[1752887940760,0.3298013,118050.0,118040.0,1.14381594]
[1752887941261,0.3298013,118050.0,118040.0,0.93879749]
[1752887941465,0.3298013,118050.0,118040.0,1.12531599]
[1752887942558,0.3298013,118050.0,118040.0,0.60281749]
[1752887942763,0.43636134,118050.0,118040.0,1.12559599]
[1752887943764,0.43636134,118050.0,118040.0,0.93907749]
[1752887943765,0.5123651,118050.0,118040.0,0.93907749]
[1752887943962,0.40580506,118050.0,118040.0,0.90401749]
[1752887944567,0.40580506,118050.0,118040.0,1.12559599]
[1752887945066,0.40580506,118050.0,118040.0,1.42079599]
[1752887945962,0.3298013,118050.0,118040.0,1.42079599]
[1752887946167,0.40580506,118050.0,118040.0,1.42079599]
[1752887946466,0.3298013,118050.0,118040.0,1.42079599]
[1752887946766,0.40580506,118050.0,118040.0,1.42079599]
[1752887948668,0.38933647,118050.0,118040.0,1.42079599]
[1752887949975,0.38933647,118050.0,118040.0,1.43988035]
[1752887951978,0.55863737,118050.0,118040.0,1.43988035]
[1752887952878,0.38933647,118050.0,118040.0,1.43988035]
[1752887954078,0.31333271,118050.0,118040.0,1.43988035]
[1752887954980,0.38940601,118050.0,118040.0,1.43988035]
[1752887957485,0.31333271,118050.0,118040.0,1.43988035]
[1752887960185,0.38944108,118050.0,118040.0,1.44002035]
[1752887960485,0.31333271,118050.0,118040.0,1.44002035]
[1752887961382,0.31333271,118050.0,118040.0,1.25350185]
[1752887961681,0.31333271,118050.0,118040.0,1.43988035]
[1752887962286,0.31333271,118050.0,118040.0,1.25336185]
[1752887962582,0.31333271,118050.0,118040.0,1.43988035]
[1752887962987,0.38944131,118050.0,118040.0,1.43988035]
[1752887963188,0.38944294,118050.0,118040.0,1.43988035]
[1752887963686,0.38944294,118050.0,118040.0,1.44002035]
[1752887964284,0.38944294,118050.0,118040.0,1.25350185]
[1752887964578,0.38944294,118050.0,118040.0,1.44002035]
[1752887964787,0.31333271,118050.0,118040.0,1.07922035]
[1752887965086,0.38944235,118050.0,118040.0,1.44002035]
[1752887965686,0.38944235,118050.0,118040.0,1.07922035]
[1752887965881,0.38944235,118050.0,118040.0,1.80082035]
[1752887967578,0.38944235,118050.0,118040.0,1.61430185]
[1752887967786,0.38944235,118050.0,118040.0,1.80082035]
[1752887970589,0.31362235,118050.0,118040.0,1.80082035]
[1752887970886,0.22707271,118050.0,118040.0,1.80082035]
[1752887972990,0.4136062,118050.0,118040.0,1.98736883]
[1752887973988,0.22707271,118050.0,118040.0,1.98736883]
[1752887974495,0.4136062,118050.0,118040.0,1.98736883]
[1752887974691,0.22707271,118050.0,118040.0,1.98736883]
[1752887976485,0.16213,118050.0,118040.0,1.98736883]
[1752887976786,0.08601271,118050.0,118040.0,1.98736883]
[1752887977192,0.16213112,118050.0,118040.0,1.98736883]
[1752887977490,0.08601271,118050.0,118040.0,1.69216883]
[1752887977690,0.19257408,118050.0,118040.0,1.69216883]
[1752887980590,0.19257408,118050.0,118040.0,1.98736883]
[1752887980792,0.03041761,118050.0,118040.0,2.17390232]
[1752887980992,0.55851401,118070.0,118060.0,0.1692865]
[1752887981192,0.55851401,118070.0,118060.0,1.20913349]
[1752887981394,0.55851401,118070.0,118060.0,1.37841999]
[1752887981590,0.37198052,118070.0,118060.0,1.38720407]
[1752887981894,0.40628349,118070.0,118060.0,1.38720407]
[1752887982087,0.21975,118070.0,118060.0,1.57373756]
[1752887982287,0.22175,118070.0,118060.0,1.59267488]
[1752887982792,0.40828349,118070.0,118060.0,1.40614139]
[1752887982983,0.40828349,118070.0,118060.0,1.40821139]
[1752887983181,0.40828349,118070.0,118060.0,1.40858139]
[1752887983591,0.22175,118070.0,118060.0,1.40858139]
[1752887983792,0.40828349,118070.0,118060.0,1.40858139]
[1752887983990,0.48436512,118070.0,118060.0,1.40858139]
[1752887984191,0.55136082,118070.0,118060.0,1.40858139]
[1752887985889,0.27887733,118070.0,118060.0,1.59511488]
[1752887986592,0.2346257,118070.0,118060.0,1.59511488]
[1752887986793,0.2785757,118070.0,118060.0,1.59511488]
[1752887986994,0.2887457,118070.0,118060.0,1.59511488]
[1752887987992,0.2887457,118070.0,118060.0,1.59902488]
[1752887990690,0.2447957,118070.0,118060.0,1.59902488]
[1752887992399,0.32087733,118070.0,118060.0,1.59902488]
[1752887993498,0.25971733,118070.0,118060.0,1.59902488]
[1752887994291,0.28014733,118070.0,118060.0,1.59902488]
[1752887995400,0.28014733,118070.0,118060.0,1.89422488]
[1752887997800,0.2040657,118070.0,118060.0,1.89422488]
[1752887998104,0.28014733,118070.0,118060.0,1.89422488]
[1752887999097,0.06283092,118070.0,118060.0,2.08075837]
[1752887999398,0.06273092,118070.0,118060.0,1.78555837]
[1752887999903,0.06273092,118070.0,118060.0,1.59902488]
[1752888000505,0.06273092,118070.0,118060.0,1.78555837]
[1752888000907,0.0019,118070.0,118060.0,1.78555837]
[1752888001508,0.0019,118070.0,118060.0,1.59902488]
[1752888002208,0.13542,118070.0,118060.0,1.59886488]
[1752888002404,0.13542,118070.0,118060.0,1.29802488]
[1752888002612,0.13542,118070.0,118060.0,1.59886488]
[1752888002904,0.16718,118070.0,118060.0,1.59886488]
[1752888003515,0.47649288,118070.0,118060.0,1.2233579]
[1752888003713,0.47649288,118070.0,118060.0,1.40989139]
[1752888004005,0.47649288,118070.0,118060.0,0.922518]
[1752888004309,0.83229857,118070.0,118060.0,0.66164]
[1752888004611,0.83229857,118070.0,118060.0,0.30084]
[1752888004806,0.9083802,118070.0,118060.0,0.30084]
[1752888005003,0.83229857,118070.0,118060.0,0.30084]
[1752888005310,1.29958,118070.0,118060.0,0.30084]
[1752888005922,1.29958,118070.0,118060.0,0.4701266]
[1752888006312,0.93878,118070.0,118060.0,0.4701266]
[1752888006613,1.29958,118070.0,118060.0,0.4701266]
[1752888006812,0.93878,118070.0,118060.0,0.4701266]
[1752888007002,0.75226241,118070.0,118060.0,0.4701266]
[1752888007204,1.11306241,118070.0,118060.0,0.4701266]
[1752888008513,1.11306241,118070.0,118060.0,0.1692866]
[1752888011214,0.75226241,118070.0,118060.0,0.1692866]
[1752888011819,0.75226241,118070.0,118060.0,0.5300866]
[1752888012012,0.75226241,118070.0,118060.0,0.5319366]
[1752888012215,0.64578098,118070.0,118060.0,0.5319366]
[1752888012407,0.28995939,118070.0,118060.0,0.71848599]
[1752888012607,0.36596417,118070.0,118060.0,0.71964599]
[1752888013117,0.28995939,118070.0,118060.0,0.71848599]
[1752888013510,0.36596497,118070.0,118060.0,0.71848599]
[1752888013912,0.28995939,118070.0,118060.0,0.71848599]
[1752888014217,0.36596743,118070.0,118060.0,0.71848599]
[1752888014425,0.27999743,118070.0,118060.0,0.71964599]
[1752888016107,0.27999743,118070.0,118060.0,1.01484599]
[1752888018318,0.20398939,118070.0,118060.0,1.01484599]
[1752888020921,0.20398939,118070.0,118060.0,1.03358313]
[1752888021920,0.13542,118070.0,118060.0,1.03358313]
[1752888022820,0.11499,118070.0,118060.0,1.03358313]
[1752888032029,0.13599,118070.0,118060.0,1.03358313]
[1752888033029,0.19679566,118070.0,118060.0,1.03358313]
[1752888033419,0.13599,118070.0,118060.0,1.03358313]
[1752888033830,0.11499,118070.0,118060.0,1.03358313]
[1752888036028,0.13599,118070.0,118060.0,1.03358313]
[1752888038127,0.0492,118070.0,118060.0,1.03358313]
[1752888038336,0.0019,118070.0,118060.0,1.22013252]
[1752888038534,0.19550566,118090.0,118070.0,0.0846307]
[1752888038733,0.19550566,118090.0,118080.0,1.56455658]
[1752888039134,0.17450566,118090.0,118080.0,1.85975658]
[1752888039437,0.18970804,118090.0,118080.0,1.85975658]
[1752888039831,0.21070804,118090.0,118080.0,1.85975658]
[1752888040232,0.27154299,118090.0,118080.0,1.85975658]
[1752888040432,0.1367,118090.0,118080.0,1.85975658]
[1752888040636,0.1387,118090.0,118080.0,1.85975658]
[1752888041038,0.1377,118090.0,118080.0,1.85975658]
[1752888041340,0.1357,118090.0,118080.0,1.85975658]
[1752888041544,0.1673,118090.0,118080.0,1.67320719]
[1752888042043,0.1673,118090.0,118080.0,1.85975658]
[1752888042444,0.22262,118090.0,118080.0,1.85975658]
[1752888043241,0.22262,118090.0,118080.0,1.37800719]
[1752888044142,0.22262,118090.0,118080.0,1.56455658]
[1752888044549,0.28345505,118090.0,118080.0,1.56455658]
[1752888045148,0.28345505,118090.0,118080.0,1.26395658]
[1752888045351,0.28345505,118090.0,118080.0,1.56447658]
[1752888048751,0.28345505,118090.0,118080.0,1.85967658]
[1752888049455,0.22813505,118090.0,118080.0,1.85967658]
[1752888049755,0.22813505,118090.0,118080.0,1.55915658]
[1752888050054,0.22813505,118090.0,118080.0,1.85963658]
[1752888050254,0.19753505,118090.0,118080.0,1.85963658]
[1752888051555,0.17653505,118090.0,118080.0,1.85963658]
[1752888051960,0.19753505,118090.0,118080.0,1.85963658]
[1752888052457,0.17653505,118090.0,118080.0,1.85963658]
[1752888053155,0.1157,118090.0,118080.0,1.85963658]
[1752888054050,0.07800804,118090.0,118080.0,1.85963658]
[1752888054251,0.002,118090.0,118080.0,1.85963658]
[1752888054554,0.06575,118090.0,118080.0,1.85963658]
[1752888054855,0.12660163,118090.0,118080.0,1.85963658]
[1752888056756,0.17655163,118090.0,118080.0,1.85963658]
[1752888059549,0.06285163,118090.0,118080.0,1.87813762]
[1752888059957,0.07800804,118090.0,118080.0,1.87813762]
[1752888060256,0.002,118090.0,118080.0,1.87813762]
[1752888060453,0.06575,118090.0,118080.0,1.87813762]
[1752888060855,0.14175804,118090.0,118080.0,1.87813762]
[1752888061457,0.06575,118090.0,118080.0,1.87813762]
[1752888061858,0.1265897,118090.0,118080.0,1.87813762]
[1752888062961,0.1265897,118090.0,118080.0,2.06402584]
[1752888063759,0.06575,118090.0,118080.0,2.06402584]
[1752888063958,0.1157,118090.0,118080.0,2.06402584]
[1752888065067,0.1157,118090.0,118080.0,1.50503884]
[1752888065358,0.1157,118090.0,118080.0,2.06402584]
[1752888066359,0.1147,118090.0,118080.0,2.06402584]
[1752888066859,0.1137,118090.0,118080.0,2.06702584]
[1752888073466,0.1137,118100.0,118090.0,0.1692436]
[1752888073766,0.16647,118100.0,118090.0,1.1979016]
[1752888074065,0.22138,118100.0,118090.0,1.1979016]
[1752888074764,0.22238,118100.0,118090.0,1.1979016]
[1752888074967,0.22238,118100.0,118090.0,1.1989016]
[1752888078371,0.2832197,118100.0,118090.0,1.1989016]
[1752888079972,0.2832197,118100.0,118090.0,1.5597016]
[1752888081963,0.2832197,118100.0,118090.0,0.8381016]
[1752888082172,0.2832197,118100.0,118090.0,1.5597016]
[1752888086669,0.22238,118100.0,118090.0,1.5597016]
[1752888087476,0.2832197,118100.0,118090.0,1.5597016]
[1752888089876,0.22238,118100.0,118090.0,1.5597016]
[1752888090969,0.28334301,118100.0,118090.0,1.5597016]
[1752888091776,0.28334301,118100.0,118090.0,1.1870436]
[1752888091985,0.28334301,118100.0,118090.0,1.5597016]
[1752888092170,0.17566301,118100.0,118090.0,1.5597016]
[1752888092677,0.19503301,118100.0,118090.0,1.5597016]
[1752888092878,0.17566301,118100.0,118090.0,1.5597016]
[1752888093078,0.1147,118100.0,118090.0,1.5597016]
[1752888095179,0.17566974,118100.0,118090.0,1.5597016]
[1752888095578,0.19503974,118100.0,118090.0,1.5597016]
[1752888098685,0.21172875,118100.0,118090.0,1.5597016]
[1752888100280,0.12860886,118100.0,118090.0,1.5770616]
[1752888100480,0.01768912,118100.0,118090.0,1.5770616]
[1752888101485,0.06404912,118100.0,118090.0,1.5770616]
[1752888102182,0.12501528,118100.0,118090.0,1.5770616]
[1752888102388,0.18839528,118100.0,118090.0,1.5770616]
[1752888102582,0.12501528,118100.0,118090.0,1.5770616]
[1752888103788,0.06404912,118100.0,118090.0,1.5084644]
[1752888103988,0.14005716,118100.0,118090.0,1.6947934]
[1752888104483,0.12336804,118100.0,118090.0,1.5084644]
[1752888104690,0.12336804,118100.0,118090.0,1.6947934]
[1752888104887,0.12336804,118100.0,118090.0,1.5084644]
[1752888106192,0.12336804,118100.0,118090.0,1.6947934]
[1752888106391,0.07700804,118100.0,118090.0,1.6947934]
[1752888106890,0.07700804,118100.0,118090.0,1.5084644]
[1752888107088,0.12336804,118100.0,118090.0,1.5084644]
[1752888107791,0.18674804,118100.0,118090.0,1.5084644]
[1752888108386,0.11074,118100.0,118090.0,1.5084644]
[1752888108893,0.1716716,118100.0,118090.0,1.5084644]
[1752888109087,0.1910416,118100.0,118090.0,1.5084644]
[1752888109990,0.1910416,118100.0,118090.0,1.1358064]
[1752888110192,0.1910416,118100.0,118090.0,1.5084644]
[1752888112193,0.1082916,118100.0,118090.0,1.5084644]
[1752888112394,0.001,118100.0,118090.0,1.5084644]
[1752888112594,0.01754,118100.0,118090.0,1.5084644]
[1752888112894,0.01754,118100.0,118090.0,1.6947934]
[1752888113996,0.0639,118100.0,118090.0,1.6947934]
[1752888114197,0.01754,118100.0,118090.0,1.6947934]
[1752888114994,0.06555,118100.0,118090.0,2.2803134]
[1752888119100,0.1234297,118110.0,118100.0,0.2998193]
[1752888119301,0.06250589,118110.0,118100.0,1.53851851]
[1752888119598,0.06250589,118110.0,118100.0,1.83371851]
[1752888120705,0.06250589,118110.0,118100.0,1.83471851]
[1752888120904,0.1234297,118110.0,118100.0,1.83471851]
[1752888121105,0.1714397,118110.0,118100.0,1.83471851]
[1752888124419,0.1909697,118110.0,118100.0,1.83471851]
[1752888124618,0.13004589,118110.0,118100.0,1.83471851]
[1752888126821,0.13004589,118110.0,118100.0,1.53475851]
[1752888127121,0.21594589,118110.0,118100.0,1.83459851]
[1752888129430,0.2768697,118110.0,118100.0,1.83459851]
[1752888129629,0.1714397,118110.0,118100.0,1.83459851]
[1752888130029,0.11051589,118110.0,118100.0,1.83459851]
[1752888130225,0.1714397,118110.0,118100.0,1.27561151]
[1752888130431,0.1714397,118110.0,118100.0,1.83459851]
[1752888130633,0.2668897,118110.0,118100.0,1.83459851]
[1752888131028,0.20596589,118110.0,118100.0,1.83459851]
[1752888131330,0.2768697,118110.0,118100.0,1.83459851]
[1752888132127,0.2768697,118110.0,118100.0,1.53475851]
[1752888132327,0.2768697,118110.0,118100.0,1.83455851]
[1752888133931,0.2768697,118110.0,118100.0,1.28725951]
[1752888134133,0.2768697,118110.0,118100.0,1.58705951]
[1752888137233,0.2768697,118110.0,118100.0,1.28725951]
[1752888137533,0.2768697,118110.0,118100.0,1.58697951]
[1752888139034,0.2768697,118110.0,118100.0,1.60391951]
[1752888139536,0.2768697,118110.0,118100.0,1.23126151]
[1752888139731,0.2768697,118110.0,118100.0,1.60391951]
[1752888140328,0.6324137,118110.0,118100.0,0.38075221]
[1752888140533,0.57148989,118110.0,118100.0,1.03603051]
[1752888140734,0.46116893,118110.0,118100.0,1.03603051]
[1752888140934,0.64749793,118110.0,118100.0,1.03603051]
[1752888141235,0.64749793,118110.0,118100.0,1.0170783]
[1752888141934,0.64749793,118110.0,118100.0,0.5310293]
[1752888142130,0.64749793,118110.0,118100.0,0.8307093]
[1752888142332,1.06684193,118110.0,118100.0,0.7173583]
[1752888142533,1.06684193,118110.0,118100.0,1.0170383]
[1752888143136,0.81684193,118110.0,118100.0,1.0170383]
[1752888146041,0.74083389,118110.0,118100.0,1.0170383]
[1752888146841,0.74083389,118110.0,118100.0,0.8307093]
[1752888147041,0.74083389,118110.0,118100.0,1.0170383]
[1752888147342,0.57161889,118110.0,118100.0,1.0170383]
[1752888147642,0.74083379,118110.0,118100.0,1.0170383]
[1752888148343,0.80169572,118110.0,118100.0,1.0170383]
[1752888148943,0.81684183,118110.0,118100.0,1.0170383]
[1752888149345,0.74083379,118110.0,118100.0,1.0170383]
[1752888149646,0.55450479,118110.0,118100.0,1.0170383]
[1752888149946,0.74083379,118110.0,118100.0,1.0170383]
[1752888150742,0.80168872,118110.0,118100.0,1.0170383]
[1752888150942,0.80168872,118110.0,118100.0,0.7173583]
[1752888151145,0.80168872,118110.0,118100.0,1.0169583]
[1752888151648,0.63234472,118110.0,118100.0,1.0169583]
[1752888151847,0.63234472,118110.0,118100.0,0.7173583]
[1752888152047,0.63234472,118110.0,118100.0,1.0169583]
[1752888152649,0.57148979,118110.0,118100.0,1.0169583]
[1752888152845,0.63233862,118110.0,118100.0,1.0169583]
[1752888153050,0.57148979,118110.0,118100.0,0.6561583]
[1752888153246,0.57148979,118110.0,118100.0,0.001]
[1752888153447,0.74083379,118110.0,118100.0,0.4697893]
[1752888153650,0.81684183,118110.0,118100.0,0.4697893]
[1752888153846,1.00317083,118110.0,118100.0,0.4697893]
[1752888154048,0.84731522,118110.0,118100.0,0.4697893]
[1752888154754,0.84731522,118110.0,118100.0,0.30056]
[1752888155152,1.03364422,118110.0,118100.0,0.4697893]
[1752888155353,1.03364422,118110.0,118100.0,0.30056]
[1752888155649,1.28364422,118110.0,118100.0,0.001]
[1752888155953,1.17716279,118110.0,118100.0,9.772e-05]
[1752888157151,0.92716279,118110.0,118100.0,9.772e-05]
[1752888157656,1.22668279,118110.0,118100.0,9.772e-05]
[1752888158750,0.1787393,118100.0,118090.0,0.8295519]
[1752888158962,0.87752005,118100.0,118090.0,0.8718622]
[1752888159255,0.87752005,118100.0,118090.0,0.9141726]
[1752888159452,0.86099404,118100.0,118090.0,0.9141726]
[1752888159957,0.86099404,118100.0,118090.0,0.9151726]
[1752888160857,0.86099404,118100.0,118090.0,0.9161726]
[1752888161058,0.86099404,118100.0,118090.0,1.1025016]
[1752888161654,0.48833604,118100.0,118090.0,1.1025016]
[1752888161854,0.86099404,118100.0,118090.0,1.1025016]
[1752888163859,0.93702576,118100.0,118090.0,1.1025016]
[1752888164258,0.83058902,118100.0,118090.0,1.1025016]
[1752888164654,0.83058902,118100.0,118090.0,0.9161726]
[1752888164855,0.83058902,118100.0,118090.0,1.0601912]
[1752888165161,0.45793102,118100.0,118090.0,1.0601912]
[1752888165358,0.83058902,118100.0,118090.0,1.0601912]
[1752888166262,0.45793102,118100.0,118090.0,1.0601912]
[1752888166462,0.64426002,118100.0,118090.0,1.0601912]
[1752888169661,0.64426002,118100.0,118090.0,1.1282412]
[1752888170158,0.45793102,118100.0,118090.0,1.1282412]
[1752888170364,0.64426002,118100.0,118090.0,1.1282412]
[1752888170764,0.64426002,118100.0,118090.0,0.9419122]
[1752888171063,0.64426002,118100.0,118090.0,1.1282412]
[1752888171563,0.5682283,118100.0,118090.0,1.1282412]
[1752888172061,0.21267,118100.0,118090.0,1.3752602]
[1752888172261,0.17319817,118100.0,118090.0,1.7360602]
[1752888172453,0.06288,118100.0,118090.0,1.7360602]
[1752888172858,0.18834172,118100.0,118090.0,1.8449312]
[1752888173057,0.18834172,118100.0,118090.0,1.6586022]
[1752888173255,0.18834172,118100.0,118090.0,2.0312602]
[1752888174567,0.13891172,118100.0,118090.0,2.0312602]
[1752888175064,0.18854172,118100.0,118090.0,2.0312602]
[1752888176868,0.07603172,118100.0,118090.0,2.0312602]
[1752888178173,0.20660172,118110.0,118100.0,0.2772193]
[1752888178475,0.20660172,118110.0,118100.0,1.0269773]
[1752888178974,0.27876172,118110.0,118100.0,1.3221773]
[1752888181066,0.29610536,118110.0,118100.0,1.3221773]
[1752888183566,0.15543536,118110.0,118100.0,1.0269773]
[1752888183767,0.09337536,118110.0,118100.0,1.2133063]
[1752888183967,0.09337536,118110.0,118100.0,1.0269773]
[1752888184876,0.15543536,118110.0,118100.0,1.0269773]
[1752888186077,0.12903364,118110.0,118100.0,1.0269773]
[1752888186479,0.1899031,118110.0,118100.0,1.0269773]
[1752888186679,0.12903364,118110.0,118100.0,1.0269773]
[1752888187782,0.12903364,118110.0,118100.0,0.9495193]
[1752888187979,0.12903364,118110.0,118100.0,1.3221773]
[1752888188379,0.29116639,118110.0,118100.0,1.3221773]
[1752888188579,0.23030364,118110.0,118100.0,1.6212173]
[1752888190582,0.29116017,118110.0,118100.0,1.6212173]
[1752888191083,0.29116017,118110.0,118100.0,1.43490136]
[1752888191878,0.29116017,118110.0,118100.0,1.79570136]
[1752888192278,0.23030364,118110.0,118100.0,1.79570136]
[1752888192683,0.29115137,118110.0,118100.0,1.79570136]
[1752888193690,0.29115137,118110.0,118100.0,1.50050136]
[1752888193890,0.23030364,118110.0,118100.0,1.50050136]
[1752888194087,0.30633536,118110.0,118100.0,1.50050136]
[1752888199490,0.30633536,118110.0,118100.0,1.79570136]
[1752888201688,0.22477536,118110.0,118100.0,1.79570136]
[1752888201883,0.20506536,118110.0,118100.0,1.79570136]
[1752888203295,0.09337536,118110.0,118100.0,1.79570136]
[1752888203795,0.15425503,118110.0,118100.0,1.79570136]
[1752888203993,0.14028331,118110.0,118100.0,1.79570136]
[1752888204494,0.18463331,118110.0,118100.0,1.79546136]
[1752888204694,0.18463331,118110.0,118100.0,1.49666136]
[1752888204896,0.18463331,118110.0,118100.0,1.6091193]
[1752888205092,0.18463331,118110.0,118100.0,1.79546136]
[1752888205492,0.20139522,118110.0,118100.0,1.50026136]
[1752888206493,0.22081522,118110.0,118100.0,1.50026136]
[1752888206896,0.22081522,118110.0,118100.0,1.50022136]
[1752888207296,0.22081522,118110.0,118100.0,1.20146136]
[1752888207497,0.22081522,118110.0,118100.0,1.50022136]
[1752888207801,0.29026522,118110.0,118100.0,1.50022136]
[1752888208198,0.29959522,118110.0,118100.0,1.50022136]
[1752888208693,0.59427251,118110.0,118100.0,0.9565093]
[1752888208895,0.67030423,118110.0,118100.0,1.1895493]
[1752888209799,0.59427251,118110.0,118100.0,1.12094557]
[1752888210196,0.76361651,118110.0,118100.0,0.46142557]
[1752888210394,0.87005325,118110.0,118100.0,0.29872]
[1752888210591,0.87005325,118110.0,118100.0,0.4679493]
[1752888210790,0.94620598,118110.0,118100.0,0.29872]
[1752888210999,0.94620598,118110.0,118100.0,0.4679493]
[1752888211196,0.83976924,118110.0,118100.0,0.4679493]
[1752888212700,0.48408318,118110.0,118100.0,0.4679493]
[1752888212900,0.67042524,118110.0,118100.0,0.4679493]
[1752888214005,0.59427251,118110.0,118100.0,0.4679493]
[1752888216306,0.67042524,118110.0,118100.0,0.4679493]
[1752888216506,0.59427251,118110.0,118100.0,0.4679493]
[1752888219210,0.67042524,118110.0,118100.0,0.4679493]
[1752888219709,0.67042524,118110.0,118100.0,0.4990093]
[1752888222811,0.67042524,118110.0,118100.0,0.8598093]
[1752888223710,0.67042524,118110.0,118100.0,0.5610893]
[1752888225314,0.67042524,118110.0,118100.0,0.5704793]
[1752888226309,0.67042524,118110.0,118100.0,0.2096793]
[1752888227313,0.48408318,118110.0,118100.0,0.2096793]
[1752888227515,0.67042524,118110.0,118100.0,0.2096793]
[1752888227917,0.48408318,118110.0,118100.0,0.2096793]
[1752888228112,0.48408318,118110.0,118100.0,0.5911493]
[1752888228318,0.67042524,118110.0,118100.0,0.5911493]
[1752888228518,0.67042524,118110.0,118100.0,0.52253841]
[1752888229617,0.65366333,118110.0,118100.0,0.52253841]
[1752888231017,0.65371028,118110.0,118100.0,0.52253841]
[1752888231217,0.65371028,118110.0,118100.0,0.70892742]
[1752888232720,0.46732127,118110.0,118100.0,0.70892742]
[1752888232918,0.65371028,118110.0,118100.0,0.70892742]
[1752888233118,0.48449538,118110.0,118100.0,0.94926643]
[1752888233318,0.46732127,118110.0,118100.0,0.94926643]
[1752888233619,0.48449538,118110.0,118100.0,0.94926643]
[1752888235025,0.29810637,118110.0,118100.0,0.76284669]
[1752888235925,0.28877637,118110.0,118100.0,0.76284669]
[1752888236726,0.28877637,118110.0,118100.0,0.57648841]
[1752888237027,0.45799117,118110.0,118100.0,0.76284669]
[1752888237927,0.28877637,118110.0,118100.0,0.76284669]
[1752888239028,0.21262364,118110.0,118100.0,0.76284669]
[1752888239527,0.31906038,118110.0,118100.0,0.76284669]
[1752888239927,0.14317364,118110.0,118100.0,0.76284669]
[1752888240123,0.14317364,118110.0,118100.0,0.73531989]
[1752888240428,0.29236038,118110.0,118100.0,0.73531989]
[1752888240628,0.32288038,118110.0,118100.0,0.73531989]
[1752888241023,0.29262123,118110.0,118100.0,0.73531989]
[1752888243030,0.30161123,118110.0,118100.0,0.73531989]
[1752888243928,0.33187038,118110.0,118100.0,0.73531989]
[1752888245122,0.33187038,118110.0,118100.0,0.54896161]
[1752888245428,0.33187038,118110.0,118100.0,0.73531989]
[1752888253934,0.40800657,118110.0,118100.0,0.73531989]
[1752888254134,0.30156983,118110.0,118100.0,0.73531989]
[1752888254334,0.22543364,118110.0,118100.0,0.73531989]
[1752888254730,0.12375364,118110.0,118100.0,0.73531989]
[1752888255636,0.12375364,118110.0,118100.0,0.54896161]
[1752888255837,0.19988983,118110.0,118100.0,0.73531989]
[1752888256137,0.18254619,118110.0,118100.0,0.73531989]
[1752888256336,0.18254619,118110.0,118100.0,0.54896161]
[1752888256536,0.18254619,118110.0,118100.0,0.73531989]
[1752888256735,0.18254619,118110.0,118100.0,0.54896161]
[1752888256935,0.18254619,118110.0,118100.0,0.92163941]
[1752888258036,0.20132619,118110.0,118100.0,0.92163941]
[1752888263435,0.18254619,118110.0,118100.0,0.92163941]
[1752888263741,0.06206,118110.0,118100.0,0.92163941]
[1752888264041,0.22585312,118120.0,118110.0,0.2829348]
[1752888264042,0.28574312,118120.0,118110.0,0.2829348]
[1752888264235,0.28574312,118120.0,118110.0,1.3144526]
[1752888264738,0.28574312,118120.0,118110.0,1.4233137]
[1752888264941,0.26696312,118120.0,118110.0,1.4233137]
[1752888265240,0.19082693,118120.0,118110.0,1.4233137]
[1752888265840,0.26696312,118120.0,118110.0,1.43208096]
[1752888266040,0.19082693,118120.0,118110.0,1.61841986]
[1752888266442,0.25275152,118120.0,118110.0,1.61841986]
[1752888267244,0.19182693,118120.0,118110.0,1.61841986]
[1752888268040,0.25275152,118120.0,118110.0,1.61841986]
[1752888269346,0.25375152,118120.0,118110.0,1.24574206]
[1752888269540,0.25475152,118120.0,118110.0,1.24574206]
[1752888269741,0.27395152,118120.0,118110.0,1.43208096]
[1752888270142,0.27195152,118120.0,118110.0,1.43208096]
[1752888270345,0.27295152,118120.0,118110.0,1.43208096]
[1752888270643,0.27195152,118120.0,118110.0,1.43208096]
[1752888273550,0.27195152,118120.0,118110.0,1.61841986]
[1752888274553,0.25275152,118120.0,118110.0,1.61841986]
[1752888277456,0.23590939,118120.0,118110.0,1.61841986]
[1752888279860,0.23590939,118120.0,118110.0,1.25761986]
[1752888280058,0.23590939,118120.0,118110.0,1.97921986]
[1752888281060,0.1749848,118120.0,118110.0,1.97921986]
[1752888281261,0.1749848,118120.0,118110.0,1.60654206]
[1752888281461,0.1749848,118120.0,118110.0,1.97921986]
[1752888282263,0.23590939,118120.0,118110.0,1.97921986]
[1752888283867,0.1749848,118120.0,118110.0,1.97921986]
[1752888285769,0.20495099,118120.0,118110.0,1.97921986]
[1752888285965,0.001,118120.0,118110.0,1.97921986]
[1752888286567,0.07713619,118120.0,118110.0,1.97921986]
[1752888286965,0.001,118120.0,118110.0,1.97921986]
[1752888290369,0.07713619,118120.0,118110.0,1.60654206]
[1752888290674,0.07713619,118120.0,118110.0,1.97921986]
[1752888291274,0.13682619,118120.0,118110.0,1.97921986]
[1752888291669,0.06069,118120.0,118110.0,1.97921986]
[1752888292272,0.16712674,118120.0,118110.0,1.97921986]
[1752888293075,0.21121674,118120.0,118110.0,1.97921986]
[1752888293774,0.21121674,118120.0,118110.0,1.60654206]
[1752888293972,0.21121674,118120.0,118110.0,1.97921986]
[1752888294172,0.10478,118120.0,118110.0,1.97921986]
[1752888294574,0.1809418,118120.0,118110.0,1.97921986]
[1752888295475,0.10478,118120.0,118110.0,1.97921986]
[1752888296773,0.001,118120.0,118110.0,1.97921986]
[1752888296977,0.06195331,118120.0,118110.0,1.97921986]
[1752888297275,0.001,118120.0,118110.0,1.97921986]
[1752888297576,0.06194726,118120.0,118110.0,1.97921986]
[1752888299277,0.04748726,118120.0,118110.0,1.97921986]
[1752888300981,0.04748726,118120.0,118110.0,1.98221986]
[1752888301577,0.04748726,118120.0,118110.0,1.98421986]
[1752888303871,0.18577993,118130.0,118120.0,0.1692005]
[1752888304076,0.18577993,118130.0,118120.0,0.9016105]
[1752888304277,0.18577993,118130.0,118120.0,1.2742883]
[1752888304883,0.25552993,118130.0,118120.0,1.2742883]
[1752888305385,0.25552993,118130.0,118120.0,1.2762883]
[1752888305785,0.25552993,118130.0,118120.0,1.2772883]
[1752888306384,0.25552993,118130.0,118120.0,1.6380883]
[1752888306880,0.21641993,118130.0,118120.0,1.6380883]
[1752888307787,0.26487993,118130.0,118120.0,1.6380883]
[1752888312389,0.45121883,118130.0,118120.0,1.4201694]
[1752888312791,0.51211788,118130.0,118120.0,1.7176894]
[1752888313584,0.68130398,118130.0,118120.0,1.5313505]
[1752888313792,0.68130398,118130.0,118120.0,1.7176894]
[1752888314592,0.68130398,118130.0,118120.0,1.4201694]
[1752888314895,0.68130398,118130.0,118120.0,1.4224894]
[1752888315892,0.86764288,118130.0,118120.0,0.3638]
[1752888316096,1.33249257,118130.0,118120.0,0.003]
[1752888316285,1.15865437,118130.0,118120.0,0.30048]
[1752888316593,1.66298317,118130.0,118120.0,0.003]
[1752888316793,1.59525182,118130.0,118120.0,0.30048]
[1752888317189,1.33685583,118130.0,118120.0,0.29748]
[1752888317391,0.3670605,118120.0,118110.0,0.92086646]
[1752888317593,0.84983837,118120.0,118110.0,0.92086646]
[1752888318094,0.84983837,118120.0,118110.0,0.9120992]
[1752888318390,0.83322339,118120.0,118110.0,0.9120992]